[Event "RUS-chT Men Rapid 2019"]
[Site "Sochi"]
[Date "2019.10.19"]
[Round "8.20"]
[White "Remizov, Yaroslav"]
[Black "Garifullina, Leya"]
[Result "1/2-1/2"]
[ECO "B90"]
[WhiteElo "2394"]
[BlackElo "2330"]
[Annotator "NA"]
[PlyCount "144"]
[EventDate "2019.10.18"]
[EventType "swiss"]
[EventCountry "RUS"]
[SourceTitle "playchess.com"]
[Source "ChessBase"]
[SourceQuality "1"]
[TimeControl "900+10"]

1. e4 {[%emt 0:00:00]} c5 {[%emt 0:00:00]} 2. Nf3 {[%emt 0:00:00]} d6 {[%emt 0:00:00]} 3. d4 {[%emt 0:00:03]} cxd4 {[%emt 0:00:00]} 4. Nxd4 {[%emt 0:00:02]} Nf6 {[%emt 0:00:00]} 5. Nc3 {[%emt 0:00:05]} a6 {[%emt 0:00:00]} 6. Be3 {[%emt 0:00:26]} e5 {[%emt 0:00:00]} 7. Nb3 {[%emt 0:00:05]} Be6 {[%emt 0:00:02]} 8. h3 {[%emt 0:00:46]} Nbd7 {[%emt 0:01:06]} 9. g4 {[%emt 0:04:09]} h6 {[%emt 0:00:05]} 10. f4 {[%emt 0:00:52]} exf4 {[%emt 0:00:10]} 11. Bxf4 {[%emt 0:00:04]} Nh5 {[%emt 0:01:01]} 12. Be3 {[%emt 0:01:47]} Ng3 {[%emt 0:00:10]} 13. Rh2 {[%emt 0:01:23]} Nxf1 {[%emt 0:00:26]} 14. Kxf1 {[%emt 0:00:01]} Be7 {[%emt 0:00:55]} 15. Nd5 {[%emt 0:03:16]} Bg5 {[%emt 0:02:09]} 16. Qd4 {[%emt 0:04:19]} O-O {[%emt 0:02:08]} 17. Rd1 {[%emt 0:00:10]} Ne5 {[%emt 0:00:25]} 18. Bxg5 {[%emt 0:00:13]} Qxg5 {[%emt 0:00:10]} 19. Qd2 {[%emt 0:00:14]} Bxd5 {[%emt 0:00:39]} 20. exd5 {[%emt 0:00:11]} Nf3 {[%emt 0:00:27]} 21. Qxg5 {[%emt 0:00:01]} Nxh2+ {[%emt 0:00:02]} 22. Kg2 {[%emt 0:00:00]} hxg5 {[%emt 0:00:02]} 23. Kxh2 {[%emt 0:00:08]} Rac8 {[%emt 0:00:07]} 24. Rd2 {[%emt 0:00:21]} Rfe8 {[%emt 0:01:00]} 25. Nd4 {[%emt 0:00:14]} g6 {[%emt 0:00:10]} 26. c3 {[%emt 0:00:08]} Re3 {[%emt 0:00:06]} 27. Kg2 {[%emt 0:00:08]} Kg7 {[%emt 0:00:34]} 28. Nf3 {[%emt 0:00:02]} Rce8 {[%emt 0:00:30]} 29. Kf2 {[%emt 0:00:01]} Kf6 {[%emt 0:00:20]} 30. c4 {[%emt 0:00:20]} R3e4 {[%emt 0:00:07]} 31. b3 {[%emt 0:00:23]} Rc8 {[%emt 0:00:44]} 32. Nd4 {[%emt 0:00:15]} Rf4+ {[%emt 0:00:30]} 33. Nf3 {[%emt 0:00:10]} Rh8 {[%emt 0:00:19]} 34. Kg3 {[%emt 0:00:08]} Re4 {[%emt 0:00:04]} 35. Rf2 {[%emt 0:00:05]} Re3 {[%emt 0:00:24]} 36. Kg2 {[%emt 0:00:00]} Rhe8 {[%emt 0:00:09]} 37. Nd4+ {[%emt 0:00:19]} Kg7 {[%emt 0:00:37]} 38. Rd2 {[%emt 0:00:07]} Re1 {[%emt 0:00:23]} 39. Kf2 {[%emt 0:00:20]} Rh1 {[%emt 0:00:16]} 40. Kg2 {[%emt 0:00:01]} Ra1 {[%emt 0:00:14]} 41. Nf3 {[%emt 0:00:08]} Kf6 {[%emt 0:00:41]} 42. Rf2 {[%emt 0:00:06]} Re4 {[%emt 0:00:22]} 43. Nd2+ {[%emt 0:00:07]} Rf4 {[%emt 0:00:01]} 44. Re2 {[%emt 0:00:01]} Kg7 {[%emt 0:01:53]} 45. Ne4 {[%emt 0:00:06]} Rff1 {[%emt 0:00:32]} 46. Nxd6 {[%emt 0:00:19]} b6 {[%emt 0:01:10]} 47. Nc8 {[%emt 0:00:29]} Rg1+ {[%emt 0:00:44]} 48. Kf3 {[%emt 0:00:12]} Rgf1+ {[%emt 0:00:03]} 49. Ke4 {[%emt 0:00:12]} f5+ {[%emt 0:00:37]} 50. gxf5 {[%emt 0:00:04]} gxf5+ {[%emt 0:00:01]} 51. Ke5 {[%emt 0:00:01]} f4 {[%emt 0:00:07]} 52. Kf5 {[%emt 0:00:21]} f3 {[%emt 0:00:05]} 53. Re7+ {[%emt 0:00:01]} Kf8 {[%emt 0:00:01]} 54. Kg6 {[%emt 0:00:23]} Rae1 {[%emt 0:00:17]} 55. Rf7+ {[%emt 0:00:07]} Ke8 {[%emt 0:00:01]} 56. Nxb6 {[%emt 0:00:09]} f2 {[%emt 0:00:17]} 57. c5 {[%emt 0:00:13]} Re7 {[%emt 0:00:14]} 58. Rf3 {[%emt 0:00:07]} Re2 {[%emt 0:00:11]} 59. d6 {[%emt 0:00:13]} Rd1 {[%emt 0:00:01]} 60. d7+ {[%emt 0:00:08]} Kd8 {[%emt 0:00:09]} 61. Rf8+ {[%emt 0:00:03]} Kc7 {[%emt 0:00:02]} 62. a4 {[%emt 0:00:18]} f1=Q {[%emt 0:00:56]} 63. d8=Q+ {[%emt 0:00:05]} Rxd8 {[%emt 0:00:02]} 64. Rxf1 {[%emt 0:00:01]} Re3 {[%emt 0:00:05]} 65. b4 {[%emt 0:00:12]} Rb3 {[%emt 0:00:01]} 66. Rf7+ {[%emt 0:00:11]} Kc6 {[%emt 0:00:08]} 67. Rf6+ {[%emt 0:00:05]} Kc7 {[%emt 0:00:01]} 68. Rf7+ {[%emt 0:00:04]} Kc6 {[%emt 0:00:07]} 69. Rf6+ {[%emt 0:00:09]} Kc7 {[%emt 0:00:34]} 70. Rf7+ {[%emt 0:00:15]} Kc6 {[%emt 0:00:01]} 71. Rf6+ {[%emt 0:00:02]} Kc7 {[%emt 0:00:02]} 72. Rf7+ {[%emt 0:00:24]} Kc6 {[%emt 0:00:01]} 1/2-1/2

[Event "RUS-chT Men Rapid 2019"]
[Site "Sochi"]
[Date "2019.10.19"]
[Round "8.21"]
[White "Yudin, Sergei"]
[Black "Yatzenko, Anton"]
[Result "1-0"]
[ECO "C50"]
[WhiteElo "2497"]
[BlackElo "2383"]
[Annotator "ChessBase"]
[PlyCount "85"]
[EventDate "2019.10.18"]
[EventType "swiss"]
[EventCountry "RUS"]
[SourceTitle "playchess.com"]
[Source "ChessBase"]
[SourceQuality "1"]
[TimeControl "900+10"]

1. e4 {[%emt 0:00:00]} e5 {[%emt 0:00:00]} 2. Nf3 {[%emt 0:00:00]} Nc6 {[%emt 0:00:00]} 3. Bc4 {[%emt 0:00:00]} Bc5 {[%emt 0:00:00]} 4. d3 {[%emt 0:00:00]} Nf6 {[%emt 0:00:00]} 5. Nbd2 {[%emt 0:00:00]} d6 {[%emt 0:00:00]} 6. O-O {[%emt 0:00:01]} a6 {[%emt 0:00:00]} 7. c3 {[%emt 0:00:02]} Ba7 {[%emt 0:00:14]} 8. Bb3 {[%emt 0:00:02]} O-O {[%emt 0:00:03]} 9. h3 {[%emt 0:00:04]} h6 {[%emt 0:00:03]} 10. Re1 {[%emt 0:00:02]} Be6 {[%emt 0:00:01]} 11. Bc2 {[%emt 0:00:23]} Re8 {[%emt 0:00:13]} 12. Nf1 {[%emt 0:00:03]} d5 {[%emt 0:00:12]} 13. exd5 {[%emt 0:00:02]} Bxd5 {[%emt 0:00:01]} 14. Ng3 {[%emt 0:00:02]} Qd7 {[%emt 0:00:37]} 15. b4 {[%emt 0:00:03]} Bxf3 {[%emt 0:04:30]} 16. Qxf3 {[%emt 0:00:17]} Nd5 {[%emt 0:00:01]} 17. Bd2 {[%emt 0:01:40]} Re6 {[%emt 0:00:02]} 18. Ne4 {[%emt 0:05:04]} Rf8 {[%emt 0:00:37]} 19. Bb3 {[%emt 0:00:07]} Kh8 {[%emt 0:00:39]} 20. Nc5 {[%emt 0:01:40]} Bxc5 {[%emt 0:00:09]} 21. bxc5 {[%emt 0:00:15]} Nce7 {[%emt 0:00:14]} 22. Re2 {[%emt 0:01:03]} c6 {[%emt 0:00:18]} 23. Rae1 {[%emt 0:00:00]} Ng6 {[%emt 0:00:15]} 24. g3 {[%emt 0:00:03]} Rf6 {[%emt 0:00:19]} 25. Qg4 {[%emt 0:00:02]} Re6 {[%emt 0:02:01]} 26. d4 {[%emt 0:03:09]} f5 {[%emt 0:03:27]} 27. Qh5 {[%emt 0:00:01]} e4 {[%emt 0:01:06]} 28. c4 {[%emt 0:00:35]} Nc7 {[%emt 0:00:28]} 29. Bc3 {[%emt 0:00:10]} Kh7 {[%emt 0:01:35]} 30. Rd2 {[%emt 0:00:14]} Qe8 {[%emt 0:01:11]} 31. Qd1 {[%emt 0:00:33]} f4 {[%emt 0:00:06]} 32. d5 {[%emt 0:00:03]} e3 {[%emt 0:00:26]} 33. dxe6 {[%emt 0:00:18]} exd2 {[%emt 0:00:37]} 34. Qxd2 {[%emt 0:00:03]} fxg3 {[%emt 0:00:07]} 35. fxg3 {[%emt 0:00:12]} Nxe6 {[%emt 0:00:49]} 36. Bc2 {[%emt 0:01:21]} Qf7 {[%emt 0:00:01]} 37. Qe3 {[%emt 0:00:07]} Ng5 {[%emt 0:00:12]} 38. Kg2 {[%emt 0:00:31]} Kh8 {[%emt 0:00:20]} 39. h4 {[%emt 0:00:33]} Nf3 {[%emt 0:00:09]} 40. Re2 {[%emt 0:00:29]} Nfxh4+ {[%emt 0:00:19]} 41. gxh4 {[%emt 0:00:13]} Nf4+ {[%emt 0:00:00]} 42. Kh1 {[%emt 0:00:26]} Nxe2 {[%emt 0:00:11]} 43. Qxh6+ 1-0

[Event "RUS-chT Men Rapid 2019"]
[Site "Sochi"]
[Date "2019.10.19"]
[Round "8.22"]
[White "Goltsev, Dmitry"]
[Black "Khegay, Dmitriy"]
[Result "0-1"]
[ECO "B08"]
[WhiteElo "2309"]
[BlackElo "2509"]
[Annotator "ChessBase"]
[PlyCount "158"]
[EventDate "2019.10.18"]
[EventType "swiss"]
[EventCountry "RUS"]
[SourceTitle "playchess.com"]
[Source "ChessBase"]
[SourceQuality "1"]
[TimeControl "900+10"]

1. e4 {[%emt 0:00:00]} g6 {[%emt 0:00:00]} 2. d4 {[%emt 0:00:00]} Bg7 {[%emt 0:00:00]} 3. Nf3 {[%emt 0:00:00]} d6 {[%emt 0:00:00]} 4. h3 {[%emt 0:00:00]} Nf6 {[%emt 0:00:00]} 5. Nc3 {[%emt 0:00:04]} O-O {[%emt 0:00:02]} 6. Be2 {[%emt 0:00:01]} a6 {[%emt 0:00:02]} 7. a4 {[%emt 0:00:02]} b6 {[%emt 0:00:02]} 8. O-O {[%emt 0:00:08]} Bb7 {[%emt 0:00:01]} 9. Qd3 {[%emt 0:00:16]} Nc6 {[%emt 0:00:02]} 10. Na2 {[%emt 0:00:39]} e5 {[%emt 0:00:49]} 11. d5 {[%emt 0:00:35]} Ne7 {[%emt 0:00:01]} 12. c4 {[%emt 0:00:05]} a5 {[%emt 0:00:18]} 13. Nc3 {[%emt 0:00:29]} Nd7 {[%emt 0:00:04]} 14. Be3 {[%emt 0:00:39]} h6 {[%emt 0:00:08]} 15. Nh2 {[%emt 0:02:02]} f5 {[%emt 0:00:28]} 16. f3 {[%emt 0:01:05]} f4 {[%emt 0:00:13]} 17. Bf2 {[%emt 0:00:01]} Nf6 {[%emt 0:00:33]} 18. Rfb1 {[%emt 0:00:16]} Bc8 {[%emt 0:00:52]} 19. Kf1 {[%emt 0:00:09]} g5 {[%emt 0:00:09]} 20. Ke1 {[%emt 0:00:02]} Ng6 {[%emt 0:00:10]} 21. Kd2 {[%emt 0:00:14]} h5 {[%emt 0:00:19]} 22. Kc2 {[%emt 0:00:15]} Bd7 {[%emt 0:01:17]} 23. Rh1 {[%emt 0:02:01]} Qc8 {[%emt 0:00:34]} 24. b3 {[%emt 0:00:38]} Kf7 {[%emt 0:00:04]} 25. Rag1 {[%emt 0:00:19]} Rh8 {[%emt 0:00:04]} 26. Qd1 {[%emt 0:00:36]} Qb7 {[%emt 0:00:08]} 27. Na2 {[%emt 0:00:51]} Rh6 {[%emt 0:00:03]} 28. Nc1 {[%emt 0:00:04]} Rah8 {[%emt 0:00:04]} 29. Nd3 {[%emt 0:00:03]} Qc8 {[%emt 0:00:16]} 30. Nf1 {[%emt 0:02:17]} g4 {[%emt 0:00:46]} 31. hxg4 {[%emt 0:00:01]} hxg4 {[%emt 0:00:01]} 32. Rxh6 {[%emt 0:00:02]} Rxh6 {[%emt 0:00:29]} 33. Nd2 {[%emt 0:00:07]} g3 {[%emt 0:00:37]} 34. Be1 {[%emt 0:00:01]} Qh8 {[%emt 0:00:02]} 35. Bf1 {[%emt 0:00:11]} Rh5 {[%emt 0:00:33]} 36. Nb1 {[%emt 0:00:07]} Rh1 {[%emt 0:01:39]} 37. Rxh1 {[%emt 0:00:11]} Qxh1 {[%emt 0:00:02]} 38. Qe2 {[%emt 0:00:04]} Nh7 {[%emt 0:00:37]} 39. Bc3 {[%emt 0:00:15]} Ng5 {[%emt 0:00:09]} 40. Ne1 {[%emt 0:00:10]} Nh4 {[%emt 0:01:17]} 41. Na3 {[%emt 0:00:49]} Bf6 {[%emt 0:00:40]} 42. Nb5 {[%emt 0:00:07]} Bd8 {[%emt 0:00:02]} 43. b4 {[%emt 0:00:17]} axb4 {[%emt 0:00:02]} 44. Bxb4 {[%emt 0:00:01]} Qg1 {[%emt 0:00:39]} 45. Kc3 {[%emt 0:00:50]} Ng6 {[%emt 0:01:05]} 46. Nd3 {[%emt 0:01:23]} Nh7 {[%emt 0:00:12]} 47. Kb3 {[%emt 0:01:02]} Ng5 {[%emt 0:00:57]} 48. Na3 {[%emt 0:00:36]} Nh4 {[%emt 0:00:16]} 49. Ne1 {[%emt 0:00:23]} Kg6 {[%emt 0:00:20]} 50. Nb5 {[%emt 0:00:06]} Kg7 {[%emt 0:01:07]} 51. Kc2 {[%emt 0:00:37]} Qh2 {[%emt 0:00:04]} 52. Kd1 {[%emt 0:00:34]} Ng6 {[%emt 0:01:41]} 53. a5 {[%emt 0:00:45]} bxa5 {[%emt 0:00:04]} 54. Bxa5 {[%emt 0:00:02]} Qg1 {[%emt 0:00:58]} 55. Bxc7 {[%emt 0:01:00]} Bxc7 {[%emt 0:00:28]} 56. Nxc7 {[%emt 0:00:01]} Qd4+ {[%emt 0:00:02]} 57. Qd3 {[%emt 0:00:21]} Qa1+ {[%emt 0:00:01]} 58. Ke2 {[%emt 0:00:08]} Qa2+ {[%emt 0:00:07]} 59. Qc2 {[%emt 0:00:26]} Qa7 {[%emt 0:00:01]} 60. Nb5 {[%emt 0:00:06]} Qf2+ {[%emt 0:00:02]} 61. Kd1 {[%emt 0:00:01]} Qxf1 {[%emt 0:00:50]} 62. Nxd6 {[%emt 0:00:02]} Nh4 {[%emt 0:00:49]} 63. Qe2 {[%emt 0:00:35]} Qf2 {[%emt 0:00:28]} 64. Nb5 {[%emt 0:00:14]} Kg6 {[%emt 0:01:01]} 65. Nd3 {[%emt 0:00:09]} Qg1+ {[%emt 0:00:17]} 66. Kc2 {[%emt 0:00:04]} Bxb5 {[%emt 0:00:13]} 67. Nxe5+ {[%emt 0:00:09]} Kf6 {[%emt 0:00:09]} 68. Ng4+ {[%emt 0:00:03]} Ke7 {[%emt 0:00:01]} 69. cxb5 {[%emt 0:00:10]} Qxg2 {[%emt 0:00:01]} 70. Qxg2 {[%emt 0:00:04]} Nxg2 {[%emt 0:00:01]} 71. b6 {[%emt 0:00:01]} Ne1+ {[%emt 0:00:28]} 72. Kb3 {[%emt 0:00:10]} Nd3 {[%emt 0:00:15]} 73. Kc4 {[%emt 0:00:10]} Nb4 {[%emt 0:00:07]} 74. Kb5 {[%emt 0:00:13]} Nf7 {[%emt 0:00:31]} 75. e5 {[%emt 0:00:24]} Nd8 {[%emt 0:00:10]} 76. Nh6 {[%emt 0:00:21]} g2 {[%emt 0:00:07]} 77. Nf5+ {[%emt 0:00:02]} Ke8 {[%emt 0:00:07]} 78. Kxb4 {[%emt 0:00:20]} g1=Q {[%emt 0:00:03]} 79. Kb5 {[%emt 0:00:05]} Qb1+ {[%emt 0:00:05]} 0-1

[Event "RUS-chT Men Rapid 2019"]
[Site "Sochi"]
[Date "2019.10.19"]
[Round "8.23"]
[White "Pogromsky, Mikhail"]
[Black "Kulik, Artur"]
[Result "1-0"]
[ECO "D30"]
[WhiteElo "2411"]
[BlackElo "2014"]
[Annotator "NA"]
[PlyCount "81"]
[EventDate "2019.10.18"]
[EventType "swiss"]
[EventCountry "RUS"]
[SourceTitle "playchess.com"]
[Source "ChessBase"]
[SourceQuality "1"]
[TimeControl "900+10"]

1. Nf3 {[%emt 0:00:00]} d5 {[%emt 0:00:00]} 2. d4 {[%emt 0:00:00]} Nf6 {[%emt 0:00:00]} 3. c4 {[%emt 0:00:06]} e6 {[%emt 0:00:00]} 4. e3 {[%emt 0:00:19]} c6 {[%emt 0:00:26]} 5. Nbd2 {[%emt 0:00:08]} Nbd7 {[%emt 0:00:17]} 6. Bd3 {[%emt 0:00:02]} Be7 {[%emt 0:00:54]} 7. O-O {[%emt 0:00:06]} O-O {[%emt 0:00:20]} 8. e4 {[%emt 0:00:04]} dxe4 {[%emt 0:01:37]} 9. Nxe4 {[%emt 0:00:02]} Nxe4 {[%emt 0:00:07]} 10. Bxe4 {[%emt 0:00:01]} c5 {[%emt 0:01:08]} 11. Re1 {[%emt 0:03:27]} Nf6 {[%emt 0:03:30]} 12. Bc2 {[%emt 0:00:02]} cxd4 {[%emt 0:00:43]} 13. Bg5 {[%emt 0:01:21]} h6 {[%emt 0:02:50]} 14. Bh4 {[%emt 0:00:06]} d3 {[%emt 0:01:18]} 15. Qxd3 {[%emt 0:03:10]} Qxd3 {[%emt 0:00:02]} 16. Bxd3 {[%emt 0:00:01]} b6 {[%emt 0:00:53]} 17. Ne5 {[%emt 0:00:31]} Bb7 {[%emt 0:00:30]} 18. f3 {[%emt 0:00:40]} Rfd8 {[%emt 0:00:50]} 19. Rad1 {[%emt 0:00:26]} Bc5+ {[%emt 0:00:32]} 20. Bf2 {[%emt 0:00:09]} Bxf2+ {[%emt 0:00:23]} 21. Kxf2 {[%emt 0:00:01]} g5 {[%emt 0:00:56]} 22. Rd2 {[%emt 0:02:10]} Kg7 {[%emt 0:00:17]} 23. Red1 {[%emt 0:00:06]} Rd4 {[%emt 0:00:35]} 24. Be2 {[%emt 0:00:58]} Rxd2 {[%emt 0:00:22]} 25. Rxd2 {[%emt 0:00:01]} Rc8 {[%emt 0:00:14]} 26. b4 {[%emt 0:00:20]} Rc7 {[%emt 0:00:06]} 27. Rd8 {[%emt 0:00:15]} Nh5 {[%emt 0:00:26]} 28. g3 {[%emt 0:00:22]} f6 {[%emt 0:00:06]} 29. Ng4 {[%emt 0:00:04]} f5 {[%emt 0:00:01]} 30. Ne3 {[%emt 0:00:43]} Nf6 {[%emt 0:00:09]} 31. a3 {[%emt 0:00:43]} Nd7 {[%emt 0:00:19]} 32. Nc2 {[%emt 0:00:20]} Ne5 {[%emt 0:00:15]} 33. Nd4 {[%emt 0:00:04]} Kf7 {[%emt 0:00:02]} 34. Nb5 {[%emt 0:00:03]} Re7 {[%emt 0:00:11]} 35. Nd6+ {[%emt 0:01:17]} Kg7 {[%emt 0:00:13]} 36. Rb8 {[%emt 0:00:47]} Bc6 {[%emt 0:00:10]} 37. b5 {[%emt 0:00:10]} Nd7 {[%emt 0:00:16]} 38. Re8 {[%emt 0:00:30]} Kf6 {[%emt 0:00:10]} 39. bxc6 {[%emt 0:00:05]} Ne5 {[%emt 0:00:07]} 40. Rxe7 {[%emt 0:00:04]} Kxe7 {[%emt 0:00:01]} 41. c7 {[%emt 0:00:01]} 1-0

[Event "RUS-chT Men Rapid 2019"]
[Site "Sochi"]
[Date "2019.10.19"]
[Round "8.24"]
[White "Kolchin, Maxim"]
[Black "Ozgibcev, Anatoly"]
[Result "0-1"]
[ECO "A48"]
[WhiteElo "2077"]
[BlackElo "2367"]
[Annotator "NA"]
[PlyCount "100"]
[EventDate "2019.10.18"]
[EventType "swiss"]
[EventCountry "RUS"]
[SourceTitle "playchess.com"]
[Source "ChessBase"]
[SourceQuality "1"]
[TimeControl "900+10"]

1. d4 {[%emt 0:00:00]} Nf6 {[%emt 0:00:00]} 2. Nf3 {[%emt 0:00:00]} g6 {[%emt 0:00:06]} 3. Bf4 {[%emt 0:00:00]} Bg7 {[%emt 0:00:03]} 4. e3 {[%emt 0:00:03]} O-O {[%emt 0:00:03]} 5. Be2 {[%emt 0:00:02]} d6 {[%emt 0:00:03]} 6. h3 {[%emt 0:00:01]} Nbd7 {[%emt 0:00:28]} 7. O-O {[%emt 0:00:08]} b6 {[%emt 0:00:02]} 8. a4 {[%emt 0:00:03]} c5 {[%emt 0:00:14]} 9. c3 {[%emt 0:00:04]} Qc7 {[%emt 0:00:13]} 10. Bh2 {[%emt 0:00:06]} Bb7 {[%emt 0:00:05]} 11. a5 {[%emt 0:00:06]} Bc6 {[%emt 0:00:15]} 12. b4 {[%emt 0:00:44]} cxb4 {[%emt 0:00:39]} 13. cxb4 {[%emt 0:00:01]} Ne4 {[%emt 0:00:29]} 14. Qc2 {[%emt 0:01:10]} Rac8 {[%emt 0:00:39]} 15. Rc1 {[%emt 0:00:03]} Qb8 {[%emt 0:00:28]} 16. Qd3 {[%emt 0:00:57]} Bd5 {[%emt 0:01:47]} 17. Nbd2 {[%emt 0:00:46]} Ndf6 {[%emt 0:03:25]} 18. Qa3 {[%emt 0:03:05]} Rxc1+ {[%emt 0:02:13]} 19. Rxc1 {[%emt 0:00:03]} Rc8 {[%emt 0:00:35]} 20. Ba6 {[%emt 0:01:56]} Rxc1+ {[%emt 0:03:01]} 21. Qxc1 {[%emt 0:01:16]} Bb7 {[%emt 0:00:46]} 22. Bd3 {[%emt 0:00:48]} Nxd2 {[%emt 0:00:44]} 23. Nxd2 {[%emt 0:00:04]} Nd5 {[%emt 0:00:33]} 24. a6 {[%emt 0:00:39]} Qc8 {[%emt 0:00:04]} 25. Qa3 {[%emt 0:03:04]} Bc6 {[%emt 0:00:18]} 26. Be4 {[%emt 0:00:41]} Qa8 {[%emt 0:01:11]} 27. Bf3 {[%emt 0:00:09]} Nc7 {[%emt 0:00:25]} 28. Qc3 {[%emt 0:03:17]} Nd5 {[%emt 0:00:28]} 29. Qc4 {[%emt 0:00:22]} b5 {[%emt 0:00:04]} 30. Qb3 {[%emt 0:00:07]} Nc7 {[%emt 0:00:15]} 31. Qc3 {[%emt 0:00:13]} Nd5 {[%emt 0:00:13]} 32. Bxd5 {[%emt 0:00:07]} Bxd5 {[%emt 0:00:01]} 33. f3 {[%emt 0:00:01]} Qb8 {[%emt 0:00:07]} 34. e4 {[%emt 0:00:10]} Be6 {[%emt 0:00:02]} 35. Kh1 {[%emt 0:00:19]} Qc8 {[%emt 0:00:07]} 36. Qa3 {[%emt 0:00:11]} Bxd4 {[%emt 0:00:07]} 37. Bg3 {[%emt 0:00:09]} Qc3 {[%emt 0:00:07]} 38. Qxc3 {[%emt 0:00:14]} Bxc3 {[%emt 0:00:02]} 39. Nf1 {[%emt 0:00:03]} Bxb4 {[%emt 0:00:03]} 40. Bf2 {[%emt 0:00:02]} Bc5 {[%emt 0:00:02]} 41. Bh4 {[%emt 0:00:04]} Kf8 {[%emt 0:00:02]} 42. Kh2 {[%emt 0:00:02]} Bc8 {[%emt 0:00:02]} 43. Nd2 {[%emt 0:00:01]} Bxa6 {[%emt 0:00:01]} 44. Kg3 {[%emt 0:00:01]} b4 {[%emt 0:00:06]} 45. Bg5 {[%emt 0:00:04]} Bd3 {[%emt 0:00:05]} 46. Nb3 {[%emt 0:01:00]} Bb6 {[%emt 0:00:01]} 47. Bc1 {[%emt 0:00:07]} a5 {[%emt 0:00:06]} 48. Nd2 {[%emt 0:00:08]} Be3 {[%emt 0:00:10]} 49. Nb3 {[%emt 0:00:04]} Bxc1 {[%emt 0:00:02]} 50. Nxc1 {[%emt 0:00:01]} Bc4 {[%emt 0:00:00]} 0-1

[Event "RUS-chT Men Rapid 2019"]
[Site "Sochi"]
[Date "2019.10.19"]
[Round "8.25"]
[White "Nesterov, Arseniy"]
[Black "Smirnov, Timofey"]
[Result "1-0"]
[ECO "D10"]
[WhiteElo "2484"]
[BlackElo "2354"]
[Annotator "ChessBase"]
[PlyCount "133"]
[EventDate "2019.10.18"]
[EventType "swiss"]
[EventCountry "RUS"]
[SourceTitle "playchess.com"]
[Source "ChessBase"]
[SourceQuality "1"]
[TimeControl "900+10"]

1. d4 {[%emt 0:00:00]} d5 {[%emt 0:00:00]} 2. c4 {[%emt 0:00:00]} c6 {[%emt 0:00:00]} 3. Nc3 {[%emt 0:00:00]} Nf6 {[%emt 0:00:00]} 4. e3 {[%emt 0:00:05]} Bf5 {[%emt 0:00:03]} 5. cxd5 {[%emt 0:00:04]} cxd5 {[%emt 0:00:02]} 6. Qb3 {[%emt 0:00:02]} Nc6 {[%emt 0:00:01]} 7. Qxb7 {[%emt 0:00:02]} Bd7 {[%emt 0:00:01]} 8. Qb3 {[%emt 0:00:02]} Rb8 {[%emt 0:00:02]} 9. Qd1 {[%emt 0:00:01]} e5 {[%emt 0:00:01]} 10. dxe5 {[%emt 0:00:31]} Nxe5 {[%emt 0:00:02]} 11. Nge2 {[%emt 0:00:05]} Bc5 {[%emt 0:01:47]} 12. Nd4 {[%emt 0:01:00]} Ne4 {[%emt 0:01:45]} 13. Be2 {[%emt 0:03:23]} Nxc3 {[%emt 0:01:24]} 14. bxc3 {[%emt 0:00:01]} Qc7 {[%emt 0:02:17]} 15. O-O {[%emt 0:01:28]} Bd6 {[%emt 0:00:28]} 16. Bd2 {[%emt 0:03:37]} O-O {[%emt 0:02:12]} 17. h3 {[%emt 0:01:25]} Nc4 {[%emt 0:00:09]} 18. Bf3 {[%emt 0:00:44]} Qc5 {[%emt 0:01:32]} 19. Nb3 {[%emt 0:00:21]} Qc6 {[%emt 0:00:08]} 20. Nd4 {[%emt 0:02:48]} Qc5 {[%emt 0:00:01]} 21. Nb3 {[%emt 0:00:05]} Qc6 {[%emt 0:01:04]} 22. Bc1 {[%emt 0:00:52]} Nb6 {[%emt 0:00:02]} 23. Qd3 {[%emt 0:00:26]} Bc7 {[%emt 0:00:53]} 24. Ba3 {[%emt 0:00:10]} Rfe8 {[%emt 0:00:40]} 25. Rad1 {[%emt 0:00:58]} Qa4 {[%emt 0:00:21]} 26. Bc5 {[%emt 0:00:41]} Bb5 {[%emt 0:00:07]} 27. Qf5 {[%emt 0:00:01]} Bxf1 {[%emt 0:00:36]} 28. Rxf1 {[%emt 0:00:25]} Re5 {[%emt 0:00:00]} 29. Qd3 {[%emt 0:00:11]} Qxa2 {[%emt 0:00:37]} 30. Nd4 {[%emt 0:00:01]} Qc4 {[%emt 0:00:35]} 31. Qxc4 {[%emt 0:00:17]} dxc4 {[%emt 0:00:02]} 32. Ba3 {[%emt 0:00:15]} Ra5 {[%emt 0:00:16]} 33. Bb4 {[%emt 0:00:01]} Ra2 {[%emt 0:00:01]} 34. Nc6 {[%emt 0:00:01]} Re8 {[%emt 0:00:12]} 35. Rd1 {[%emt 0:00:13]} g6 {[%emt 0:00:26]} 36. g4 {[%emt 0:00:04]} h6 {[%emt 0:00:04]} 37. Bc5 {[%emt 0:00:06]} a5 {[%emt 0:00:49]} 38. Rb1 {[%emt 0:00:10]} Nd7 {[%emt 0:00:47]} 39. Bd4 {[%emt 0:00:26]} Ne5 {[%emt 0:00:01]} 40. Bxe5 {[%emt 0:00:06]} Bxe5 {[%emt 0:00:02]} 41. Bd5 {[%emt 0:00:03]} Bxc3 {[%emt 0:00:27]} 42. Rb7 {[%emt 0:00:02]} Rf8 {[%emt 0:00:00]} 43. Bxc4 {[%emt 0:00:01]} Ra1+ {[%emt 0:00:08]} 44. Kg2 {[%emt 0:00:01]} a4 {[%emt 0:00:00]} 45. h4 {[%emt 0:00:29]} a3 {[%emt 0:00:13]} 46. h5 {[%emt 0:00:15]} gxh5 {[%emt 0:00:36]} 47. Ne7+ {[%emt 0:00:13]} Kg7 {[%emt 0:00:22]} 48. Nf5+ {[%emt 0:00:01]} Kh8 {[%emt 0:01:00]} 49. Nxh6 {[%emt 0:00:26]} h4 {[%emt 0:00:29]} 50. Nxf7+ {[%emt 0:00:09]} Kg7 {[%emt 0:00:06]} 51. Nd6+ {[%emt 0:00:04]} Kh6 {[%emt 0:00:15]} 52. f4 {[%emt 0:00:16]} Rd1 {[%emt 0:00:18]} 53. Ne4 {[%emt 0:00:22]} Bg7 {[%emt 0:00:14]} 54. Ra7 {[%emt 0:00:17]} Rc1 {[%emt 0:00:11]} 55. Bd3 {[%emt 0:00:08]} Rd1 {[%emt 0:00:10]} 56. g5+ {[%emt 0:00:03]} Kh7 {[%emt 0:00:01]} 57. Nf2+ {[%emt 0:00:07]} Rxd3 58. Nxd3 {[%emt 0:00:01]} Re8 {[%emt 0:00:12]} 59. Kf3 {[%emt 0:00:07]} h3 {[%emt 0:00:22]} 60. Rxa3 {[%emt 0:00:01]} h2 {[%emt 0:00:07]} 61. Nf2 {[%emt 0:00:03]} Rb8 {[%emt 0:00:11]} 62. Rd3 {[%emt 0:00:15]} Rb1 {[%emt 0:00:15]} 63. Kg2 {[%emt 0:00:02]} Rb2 {[%emt 0:00:03]} 64. Rd1 {[%emt 0:00:06]} Rb3 {[%emt 0:00:17]} 65. Kf3 {[%emt 0:00:08]} Kg6 {[%emt 0:00:03]} 66. Rh1 {[%emt 0:00:10]} Bd4 {[%emt 0:00:02]} 67. Ng4 {[%emt 0:00:02]} 1-0